fUSD/lending_fUSD_20260402
["ID","MTS","AMOUNT","RATE_DAILY","PERIOD"]
[419311119,1775142640753,-500.0,0.00015973,2]
[419311120,1775142640763,-201.1346108,0.0001599,2]
[419311121,1775142640773,-151.0,0.00015997,2]
[419311122,1775142640784,-500.0,0.00015999,2]
[419311123,1775142640794,-500.0,0.00015999,2]
[419311124,1775142640804,-159.01458109,0.00015999,2]
[419311125,1775142640814,-500.0,0.00015999,2]
[419311126,1775142640824,-500.0,0.00015999,2]
[419311127,1775142640834,-287.79490841,0.00015999,2]
[419311128,1775142640844,-500.0,0.00015999,2]
[419311129,1775142640854,-500.0,0.00015999,2]
[419311130,1775142640864,-400.8429185,0.00015999,2]
[419311131,1775142640874,-325.64720677,0.00015999,2]
[419311132,1775142640884,-500.0,0.00015999,2]
[419311133,1775142640894,-495.58779177,0.00015999,2]
[419311134,1775142640904,-365.47,0.00016,2]
[419311135,1775142640915,-1159952.01106599,0.00016,2]
[419311136,1775142640925,-417.26300613,0.00016,2]
[419311137,1775142640935,-808203.43658281,0.00016,2]
[419311138,1775142640957,-3300.0,0.00016,2]
[419311139,1775142640977,-654.21350634,0.00016,2]
[419311149,1775142642898,-334.63752923,0.00016,2]
[419311150,1775142642911,-827.75733248,0.00016,2]
[419311151,1775142643270,-5607.46419707,0.00016,2]
[419311152,1775142643283,-501.60804804,0.00016,2]
[419311163,1775142645720,-1180.95304529,0.00016,2]
[419311164,1775142645732,-1434.61950838,0.00016,2]
[419311165,1775142645743,-16031.52752629,0.00016,2]
[419311166,1775142645754,-400.88914376,0.00016,2]
[419311167,1775142645777,-9028.77737094,0.00016,2]
[419311168,1775142645788,-4112.09833917,0.00016,2]
[419311169,1775142645955,-960.42377543,0.00016,2]
[419311170,1775142645966,-2651.33,0.00016,2]
[419311171,1775142646010,-42749.672503,0.00016,2]
[419311172,1775142646022,-608.21731146,0.00016,2]
[419311173,1775142646120,-462.708,0.00016,2]
[419311184,1775143029623,16630.4,0.000165,59]
[419311190,1775143831825,-368.93,0.00011507,2]
[419311191,1775143831835,-195.0,0.00012658,2]
[419311192,1775143831844,-250.0,0.00013,2]
[419311193,1775143831853,-1018.7,0.00013,3]
[419311194,1775143831863,-793.0,0.00013172,2]
[419311197,1775143832071,-1166.31786815,0.00013172,2]
[419311203,1775143832149,-33.68213185,0.00013172,2]
[419311205,1775143832158,-300.0,0.00013172,2]
[419311207,1775143832168,-966.89613337,0.00013173,2]
[419311214,1775143832257,-2505.99198305,0.00013173,2]
[419311216,1775143832269,-22936.23525744,0.00013173,2]
[419311218,1775143832278,-151.0,0.00013248,2]
[419311220,1775143832287,-364.82179686,0.0001325,2]
[419311221,1775143832297,-511.31020676,0.0001325,2]
[419311222,1775143832306,-1090.37665391,0.0001325,3]
[419311223,1775143832316,-150.0,0.0001325,2]
[419311224,1775143832325,-112941.88404426,0.00013251,2]
[419311225,1775143832336,-400.0,0.00013251,2]
[419311237,1775143837901,-1314.82862385,0.00013251,2]
[419311238,1775143837914,-1364.2629872,0.00013251,2]
[419311239,1775143837952,-972.2442413,0.00013251,2]
[419311240,1775143837964,-2550.08594035,0.00013251,2]
[419311241,1775143837976,-1276.2018749,0.00013251,2]
[419311242,1775143837992,-11979.75265951,0.00013251,2]
[419311243,1775143838062,-6034.16891772,0.00013251,2]
[419311244,1775143838118,-895995.31911179,0.00013251,2]
[419311274,1775143841483,-2801.30178774,0.00013251,2]
[419311279,1775143842956,-2006.2753954,0.00013251,2]
[419311281,1775143845855,-8178.02593296,0.00013251,2]
[419311282,1775143846172,-4813.38169941,0.00013251,2]
[419311283,1775143846288,-409.9,0.00013251,2]
[419311292,1775145032002,-200.0,0.00012443,2]
[419311293,1775145032012,-254.02947525,0.00012519,2]
[419311294,1775145032026,-706.49,0.00012519,2]
[419311295,1775145032039,-1009.53052475,0.00012519,2]
[419311296,1775145032049,-1809.11,0.00012563,2]
[419311297,1775145032059,-1200.0,0.00012664,2]
[419311298,1775145032070,-4637.5,0.00012665,2]
[419311299,1775145032080,-150.0,0.00012797,2]
[419311300,1775145032090,-300.0,0.00012797,2]
[419311301,1775145032101,-500.0,0.00012798,2]
[419311302,1775145032110,-500.0,0.00012798,2]
[419311303,1775145032120,-500.0,0.00012798,2]
[419311304,1775145032130,-500.0,0.00012798,2]
[419311305,1775145032140,-500.0,0.00012798,2]
[419311306,1775145032150,-500.0,0.00012798,2]
[419311307,1775145032160,-500.0,0.00012798,2]
[419311308,1775145032170,-500.0,0.00012798,2]
[419311309,1775145032179,-500.0,0.00012798,2]
[419311310,1775145032188,-627.34634396,0.00012798,2]
[419311311,1775145032198,-1300.0,0.000128,4]
[419311312,1775145032207,-5623.40880286,0.00012873,2]
[419311313,1775145032231,-1564.62421589,0.00012873,2]
[419311314,1775145032242,-5534.35170002,0.00012873,2]
[419311315,1775145032258,-735.90085166,0.00012873,2]
[419311323,1775145038114,-10309.92546608,0.00012873,2]
[419311324,1775145038125,-2958.74388151,0.00012873,2]
[419311325,1775145038135,-2600.0,0.000129,4]
[419311326,1775145038145,-165.46,0.0001292,2]
[419311327,1775145038155,-500.0,0.00012971,2]
[419311328,1775145038165,-500.0,0.00012971,2]
[419311329,1775145038176,-500.0,0.00012971,2]
[419311330,1775145038186,-500.0,0.00012971,2]
[419311331,1775145038196,-500.0,0.00012971,2]
[419311332,1775145038206,-500.0,0.00012971,2]
[419311333,1775145038216,-434.557369,0.00012971,2]
[419311334,1775145038229,-165.442631,0.00012971,2]
[419311335,1775145038239,-303.65982722,0.00012971,2]
[419311336,1775145038267,-196.34017278,0.00012971,2]
[419311337,1775145038277,-201.45643589,0.00012971,2]
[419311338,1775145038288,-196.91145424,0.00012971,2]
[419311339,1775145038298,-500.0,0.00012971,2]
[419311340,1775145038308,-188.73880782,0.00012971,2]
[419311341,1775145038373,-311.26119218,0.00012971,2]
[419311342,1775145038385,-500.0,0.00012971,2]
[419311343,1775145038395,-500.0,0.00012971,2]
[419311344,1775145038406,-255.3752578,0.00012971,2]
[419311345,1775145038416,-357.91714473,0.00012971,2]
[419311346,1775145038426,-500.0,0.00012971,2]
[419311347,1775145038436,-500.0,0.00012971,2]
[419311348,1775145038446,-500.0,0.00012971,2]
[419311349,1775145038456,-500.0,0.00012971,2]
[419311350,1775145038466,-500.0,0.00012971,2]
[419311351,1775145038477,-500.0,0.00012971,2]
[419311352,1775145038487,-500.0,0.00012971,2]
[419311353,1775145038498,-500.0,0.00012971,2]
[419311354,1775145038507,-500.0,0.00012971,2]
[419311355,1775145038518,-500.0,0.00012971,2]
[419311356,1775145038531,-500.0,0.00012971,2]
[419311357,1775145038541,-500.0,0.00012971,2]
[419311358,1775145038552,-500.0,0.00012971,2]
[419311359,1775145038563,-539.85274318,0.00012971,2]
[419311360,1775145038572,-500.0,0.00012971,2]
[419311361,1775145038582,-500.0,0.00012971,2]
[419311362,1775145038592,-500.0,0.00012971,2]
[419311363,1775145038603,-500.0,0.00012971,2]
[419311364,1775145038612,-500.0,0.00012971,2]
[419311365,1775145038623,-500.0,0.00012971,2]
[419311366,1775145038634,-500.0,0.00012971,2]
[419311367,1775145038645,-500.0,0.00012971,2]
[419311368,1775145038655,-500.0,0.00012971,2]
[419311369,1775145038665,-500.0,0.00012971,2]
[419311370,1775145038675,-500.0,0.00012971,2]
[419311371,1775145038685,-500.0,0.00012971,2]
[419311372,1775145038695,-500.0,0.00012971,2]
[419311373,1775145038706,-500.0,0.00012971,2]
[419311374,1775145038715,-500.0,0.00012971,2]
[419311375,1775145038725,-500.0,0.00012971,2]
[419311376,1775145038736,-500.0,0.00012971,2]
[419311377,1775145038746,-500.0,0.00012971,2]
[419311378,1775145038757,-500.0,0.00012971,2]
[419311379,1775145038768,-500.0,0.00012971,2]
[419311380,1775145038778,-500.0,0.00012971,2]
[419311381,1775145038788,-500.0,0.00012971,2]
[419311382,1775145038798,-500.0,0.00012971,2]
[419311383,1775145038807,-307.30462734,0.00012971,2]
[419311384,1775145038821,-192.69537266,0.00012971,2]
[419311385,1775145038831,-200.0,0.00012971,2]
[419311386,1775145038841,-500.0,0.00012971,2]
[419311387,1775145038851,-500.0,0.00012971,2]
[419311388,1775145038861,-500.0,0.00012971,2]
[419311389,1775145038871,-500.0,0.00012971,2]
[419311390,1775145038885,-500.0,0.00012971,2]
[419311391,1775145038896,-500.0,0.00012971,2]
[419311392,1775145038906,-500.0,0.00012971,2]
[419311393,1775145038916,-500.0,0.00012971,2]
[419311394,1775145038927,-500.0,0.00012971,2]
[419311395,1775145038937,-500.0,0.00012971,2]
[419311396,1775145038948,-500.0,0.00012971,2]
[419311397,1775145038958,-921449.22596306,0.00012972,2]
[419311398,1775145040510,-32879.50433694,0.00012972,2]
[419311399,1775145040519,-3474.3649,0.00012973,2]
[419311400,1775145040529,-1972.6171,0.00012973,2]
[419311401,1775145040538,-2500.0,0.00012973,2]
[419311402,1775145040548,-18727.31383208,0.00013,2]
[419311403,1775145040557,-1000.0,0.0001305,2]
[419311404,1775145040567,-1000.0,0.00013072,2]
[419311405,1775145040576,-1047.09,0.00013072,2]
[419311406,1775145040586,-500.0,0.00013073,2]
[419311407,1775145040595,-500.47003133,0.00013073,2]
[419311408,1775145040604,-159.91138824,0.00013073,2]
[419311409,1775145040614,-502.48397435,0.00013073,2]
[419311410,1775145040625,-500.0,0.00013073,2]
[419311411,1775145040635,-500.0,0.00013073,2]
[419311412,1775145040644,-164.98377626,0.00013073,2]
[419311413,1775145040654,-500.0,0.00013073,2]
[419311414,1775145040664,-500.0,0.00013073,2]
[419311415,1775145040673,-4003.21614861,0.00013073,2]
[419311416,1775145040685,-36816.67648242,0.00013073,2]
[419311417,1775145040928,-348.32393197,0.00013073,2]
[419311424,1775145044389,-611.94845348,0.00012873,2]
[419311427,1775145046008,-665.19517588,0.00012873,2]
[419311428,1775145046018,-357.6031456,0.00013073,2]
[419311429,1775145046030,-954.67114887,0.00013073,2]
[419311430,1775145046042,-999.4796696,0.00013073,2]
[419311431,1775145046061,-1387.2557,0.00013073,2]
[419311432,1775145046272,-37971.81611278,0.00013073,2]
[419311433,1775145046404,-15560.062563,0.00013073,2]
[419311434,1775145046416,-1118.79029258,0.00013073,2]
[419311447,1775146238399,-356.69387292,9.5e-05,3]
[419311448,1775146238455,-7641.8242435,9.5e-05,3]
[419311449,1775146238464,-1200.0,0.00011662,2]
[419311450,1775146238474,-150.0,0.00011663,2]
[419311451,1775146238483,-150.0,0.00011663,2]
[419311452,1775146238493,-150.0,0.00011663,2]
[419311453,1775146238503,-150.0,0.00011663,2]
[419311454,1775146238513,-150.0,0.00011663,2]
[419311455,1775146238523,-150.0,0.00011663,2]
[419311456,1775146238532,-150.0,0.00011663,2]
[419311457,1775146238542,-150.0,0.00011663,2]
[419311458,1775146238552,-150.0,0.00011663,2]
[419311459,1775146238561,-150.0,0.00011663,2]
[419311460,1775146238570,-150.0,0.00011663,2]
[419311461,1775146238579,-150.0,0.00011663,2]
[419311462,1775146238589,-150.0,0.00011706,2]
[419311463,1775146238598,-150.0,0.00011709,2]
[419311464,1775146238607,-150.0,0.00011711,2]
[419311465,1775146238617,-150.0,0.00011713,2]
[419311466,1775146238627,-150.0,0.00011725,2]
[419311467,1775146238636,-150.0,0.00011728,2]
[419311468,1775146238646,-150.0,0.00011749,2]
[419311469,1775146238655,-150.0,0.00011756,2]
[419311470,1775146238664,-150.0,0.00011759,2]
[419311471,1775146238674,-150.0,0.00011763,2]
[419311472,1775146238683,-150.0,0.00011781,2]
[419311473,1775146238694,-150.0,0.00011786,2]
[419311474,1775146238704,-150.0,0.00011793,2]
[419311475,1775146238716,-150.0,0.00011793,2]
[419311476,1775146238725,-150.0,0.00011802,2]
[419311477,1775146238734,-150.0,0.00011807,2]
[419311478,1775146238745,-150.0,0.00011807,2]
[419311479,1775146238754,-150.0,0.00011813,2]
[419311480,1775146238764,-150.0,0.00011836,2]
[419311481,1775146238774,-150.0,0.00011848,2]
[419311483,1775146238784,-150.0,0.00011848,2]
[419311485,1775146238794,-150.0,0.00011855,2]
[419311486,1775146238804,-150.0,0.00011857,2]
[419311487,1775146238814,-150.0,0.00011862,2]
[419311488,1775146238825,-150.0,0.00011879,2]
[419311489,1775146238834,-150.0,0.00011894,2]
[419311490,1775146238846,-150.0,0.00011899,2]
[419311491,1775146238855,-150.0,0.00011899,2]
[419311492,1775146238866,-150.0,0.00011903,2]
[419311493,1775146238875,-150.0,0.0001191,2]
[419311494,1775146238885,-150.0,0.00011912,2]
[419311495,1775146238894,-150.0,0.00011922,2]
[419311496,1775146238904,-150.0,0.00011922,2]
[419311497,1775146238912,-150.0,0.00011922,2]
[419311498,1775146238922,-150.0,0.00011941,2]
[419311499,1775146238931,-150.0,0.00011951,2]
[419311500,1775146238940,-150.0,0.00011951,2]
[419311501,1775146238950,-150.0,0.00011962,2]
[419311502,1775146238960,-150.0,0.00011965,2]
[419311503,1775146238969,-150.0,0.00011972,2]
[419311504,1775146238979,-150.0,0.00011987,2]
[419311505,1775146238988,-150.0,0.00011987,2]
[419311506,1775146238997,-150.0,0.00011999,2]
[419311507,1775146239007,-150.0,0.00012009,2]
[419311508,1775146239017,-150.0,0.00012012,2]
[419311509,1775146239026,-150.0,0.00012016,2]
[419311510,1775146239041,-150.0,0.00012033,2]
[419311511,1775146239050,-150.0,0.00012033,2]
[419311512,1775146239060,-150.0,0.00012047,2]
[419311513,1775146239070,-500.0,0.0001205,2]
[419311514,1775146239079,-500.0,0.0001205,2]
[419311515,1775146239088,-500.0,0.0001205,2]
[419311516,1775146239098,-500.68484421,0.0001205,2]
[419311517,1775146239107,-500.0,0.0001205,2]
[419311518,1775146239117,-150.0,0.00012052,2]
[419311519,1775146239127,-150.0,0.00012052,2]
[419311520,1775146239137,-189.24,0.00012052,2]
[419311521,1775146239146,-150.0,0.00012062,2]
[419311522,1775146239156,-150.0,0.0001208,2]
[419311523,1775146239166,-150.0,0.00012095,2]
[419311524,1775146239175,-150.0,0.00012095,2]
[419311525,1775146239185,-150.0,0.00012095,2]
[419311526,1775146239194,-150.0,0.00012095,2]
[419311527,1775146239204,-150.0,0.00012095,2]
[419311528,1775146239214,-150.0,0.00012112,2]
[419311529,1775146239224,-150.0,0.00012117,2]
[419311530,1775146239234,-150.0,0.00012126,2]
[419311531,1775146239243,-150.0,0.00012134,2]
[419311532,1775146239253,-150.0,0.00012138,2]
[419311533,1775146239263,-150.0,0.00012143,2]
[419311534,1775146239272,-150.0,0.00012157,2]
[419311535,1775146239281,-150.0,0.00012161,2]
[419311536,1775146239291,-150.0,0.00012172,2]
[419311537,1775146239300,-150.0,0.00012181,2]
[419311538,1775146239310,-150.0,0.00012181,2]
[419311539,1775146239320,-150.0,0.00012181,2]
[419311540,1775146239329,-150.0,0.00012191,2]
[419311541,1775146239339,-151.37,0.00012194,2]
[419311542,1775146239348,-150.0,0.00012211,2]
[419311543,1775146239359,-150.0,0.00012218,2]
[419311544,1775146239368,-150.0,0.00012218,2]
[419311545,1775146239378,-150.0,0.00012225,2]
[419311546,1775146239388,-150.0,0.00012239,2]
[419311547,1775146239397,-150.0,0.00012239,2]
[419311548,1775146239407,-150.0,0.00012246,2]
[419311549,1775146239416,-866.490013,0.00012247,2]
[419311550,1775146239426,-982.316899,0.00012247,2]
[419311551,1775146239436,-689.40522,0.00012247,2]
[419311552,1775146239445,-150.0,0.00012252,2]
[419311553,1775146239454,-150.0,0.00012261,2]
[419311554,1775146239463,-150.0,0.00012265,2]
[419311555,1775146239473,-150.0,0.00012268,2]
[419311556,1775146239482,-150.0,0.0001228,2]
[419311557,1775146239492,-150.0,0.00012287,2]
[419311558,1775146239502,-150.0,0.00012311,2]
[419311559,1775146239511,-150.0,0.00012311,2]
[419311560,1775146239520,-150.0,0.00012311,2]
[419311561,1775146239530,-150.0,0.00012311,2]
[419311562,1775146239542,-150.0,0.00012311,2]
[419311563,1775146239551,-150.0,0.00012335,2]
[419311564,1775146239560,-150.0,0.00012342,2]
[419311565,1775146239570,-421.84600938,0.00012346,2]
[419311566,1775146239579,-150.0,0.00012354,2]
[419311567,1775146239590,-150.0,0.00012357,2]
[419311568,1775146239601,-150.0,0.00012361,2]
[419311569,1775146239610,-150.0,0.0001237,2]
[419311570,1775146239620,-150.0,0.00012376,2]
[419311571,1775146239629,-150.0,0.00012383,2]
[419311572,1775146239639,-150.0,0.00012383,2]
[419311573,1775146239648,-150.0,0.00012397,2]
[419311574,1775146239659,-150.0,0.00012404,2]
[419311575,1775146239669,-150.0,0.00012404,2]
[419311576,1775146239679,-150.0,0.00012411,2]
[419311577,1775146239689,-150.0,0.00012431,2]
[419311578,1775146239700,-150.0,0.00012441,2]
[419311579,1775146239710,-150.0,0.00012441,2]
[419311580,1775146239719,-150.0,0.00012441,2]
[419311581,1775146239730,-150.0,0.0001245,2]
[419311582,1775146239740,-150.0,0.0001246,2]
[419311583,1775146239750,-150.0,0.00012465,2]
[419311584,1775146239760,-150.0,0.00012479,2]
[419311585,1775146239773,-150.0,0.00012484,2]
[419311586,1775146239783,-150.0,0.00012488,2]
[419311587,1775146239793,-150.0,0.00012496,2]
[419311588,1775146239804,-4527.91,0.00012497,2]
[419311589,1775146239815,-150.0,0.00012505,2]
[419311590,1775146239824,-150.0,0.0001251,2]
[419311591,1775146239835,-150.0,0.00012527,2]
[419311592,1775146239845,-150.0,0.00012527,2]
[419311593,1775146239855,-150.0,0.00012527,2]
[419311594,1775146239867,-150.0,0.00012527,2]
[419311595,1775146239876,-150.0,0.00012527,2]
[419311596,1775146239889,-150.0,0.00012542,2]
[419311597,1775146239900,-150.0,0.0001256,2]
[419311598,1775146239909,-150.0,0.0001257,2]
[419311599,1775146239919,-150.0,0.0001257,2]
[419311600,1775146239929,-150.0,0.00012575,2]
[419311601,1775146239940,-156.09193039,0.00012579,2]
[419311602,1775146239950,-16854.58244889,0.00012579,2]
[419311603,1775146239960,-150.0,0.00012589,2]
[419311604,1775146239970,-150.0,0.00012589,2]
[419311605,1775146239980,-1001.67855026,0.00012598,2]
[419311606,1775146239989,-1000.0,0.00012598,2]
[419311607,1775146239999,-500.0,0.00012598,2]
[419311608,1775146240008,-1000.0,0.00012598,2]
[419311609,1775146240017,-150.0,0.00012605,2]
[419311610,1775146240027,-150.0,0.0001261,2]
[419311611,1775146240036,-150.0,0.00012613,2]
[419311612,1775146240416,-150.0,0.00012623,2]
[419311613,1775146240442,-150.0,0.00012635,2]
[419311614,1775146240451,-150.0,0.00012635,2]
[419311615,1775146240461,-28402.22,0.00012643,2]
[419311616,1775146240470,-1500.0,0.00012643,2]
[419311617,1775146240479,-150.0,0.0001265,2]
[419311618,1775146240488,-150.0,0.00012657,2]
[419311619,1775146240498,-150.0,0.0001266,2]
[419311620,1775146240507,-150.0,0.00012671,2]
[419311621,1775146240516,-150.0,0.00012671,2]
[419311622,1775146240525,-10965.8899,0.00012673,2]
[419311623,1775146240534,-826940.37127709,0.00012673,2]
[419311624,1775146240692,-1828.23764077,0.00012673,2]
[419311628,1775146241798,-6486.19538071,0.00012673,2]
[419311629,1775146241810,-46246.81003409,0.00012673,2]
[419311630,1775146241823,-8913.45864104,0.00012673,2]
[419311677,1775146246209,-2392.81052465,0.00012673,2]
[419311680,1775146246509,-1211.66019277,0.00012673,2]
[419311714,1775147432388,-579.12658211,9.274e-05,2]
[419311715,1775147432398,-283.0,9.274e-05,2]
[419311716,1775147432408,-184.52886775,0.0001,2]
[419311717,1775147432418,-150.0,0.00010016,2]
[419311718,1775147432428,-150.0,0.00010016,2]
[419311719,1775147432437,-250.0,0.00010067,2]
[419311720,1775147432446,-601.90435204,0.00010201,2]
[419311721,1775147432456,-1017.09,0.00011263,2]
[419311722,1775147432465,-150.0,0.000115,2]
[419311723,1775147432474,-381.58,0.00011507,2]
[419311724,1775147432484,-249.88,0.00011516,2]
[419311725,1775147432494,-1200.0,0.00011517,2]
[419311726,1775147432504,-300.0,0.00011518,2]
[419311727,1775147432513,-32996.51,0.00011519,2]
[419311728,1775147432522,-1215.66,0.00011524,2]
[419311729,1775147432531,-194.01675595,0.000118,2]
[419311730,1775147432541,-150.0,0.00011814,2]
[419311731,1775147432551,-2000.0,0.0001182,2]
[419311732,1775147432561,-153.0,0.00011837,2]
[419311733,1775147432570,-158.0,0.00011889,2]
[419311734,1775147432579,-236.0,0.00011928,2]
[419311735,1775147432588,-396.61291239,0.00012191,2]
[419311736,1775147432597,-1979.71839249,0.000124,2]
[419311737,1775147432606,-202.0,0.00012538,2]
[419311738,1775147432616,-150.0,0.00012556,2]
[419311739,1775147432625,-200.0,0.00012557,2]
[419311740,1775147432634,-503.74966854,0.00012557,2]
[419311741,1775147432643,-151.0,0.00012557,2]
[419311742,1775147432654,-151.0,0.00012557,2]
[419311743,1775147432663,-151.0,0.00012557,2]
[419311744,1775147432674,-151.0,0.00012557,2]
[419311745,1775147432684,-151.0,0.00012557,2]
[419311746,1775147432693,-151.0,0.00012557,2]
[419311747,1775147432702,-151.0,0.00012557,2]
[419311748,1775147432712,-151.0,0.00012557,2]
[419311749,1775147432721,-151.0,0.00012557,2]
[419311750,1775147432730,-496.32304571,0.00012557,2]
[419311751,1775147432739,-151.0,0.00012557,2]
[419311752,1775147432749,-151.0,0.00012557,2]
[419311753,1775147432759,-151.0,0.00012557,2]
[419311754,1775147432768,-151.0,0.00012557,2]
[419311755,1775147432778,-151.0,0.00012557,2]
[419311756,1775147432787,-151.0,0.00012557,2]
[419311757,1775147432796,-151.0,0.00012557,2]
[419311758,1775147432806,-151.0,0.00012557,2]
[419311759,1775147432816,-151.0,0.00012557,2]
[419311760,1775147432825,-273.20808876,0.00012557,2]
[419311761,1775147432835,-151.0,0.00012557,2]
[419311762,1775147432844,-151.0,0.00012557,2]
[419311763,1775147432853,-151.0,0.00012557,2]
[419311764,1775147432863,-151.0,0.00012557,2]
[419311765,1775147432874,-151.0,0.00012557,2]
[419311766,1775147432883,-151.0,0.00012557,2]
[419311767,1775147432892,-151.0,0.00012557,2]
[419311768,1775147432902,-8164.44969962,0.00012561,2]
[419311769,1775147432913,-3104.85239387,0.00012561,2]
[419311770,1775147432924,-8767.32066363,0.00012561,2]
[419311771,1775147432937,-182.49494786,0.00012561,2]
[419311772,1775147432946,-500.0,0.00012561,2]
[419311773,1775147432956,-1263.65403214,0.00012569,2]
[419311774,1775147433012,-401.62118215,0.00012569,2]
[419311775,1775147433023,-1871.78,0.00012569,2]
[419311776,1775147433043,-1213.91127574,0.00012569,2]
[419311777,1775147433054,-2510.49454272,0.00012569,2]
[419311778,1775147433065,-380.0,0.00012569,2]
[419311779,1775147433091,-732.5,0.00012569,2]
[419311780,1775147433107,-381.88830633,0.00012569,2]
[419311781,1775147438679,-424.36539895,0.00012569,2]
[419311782,1775147438692,-1527.03439327,0.00012569,2]
[419311783,1775147438742,-7904.62537552,0.00012569,2]
[419311784,1775147438753,-1662.67,0.00012569,2]
[419311785,1775147438781,-4509.24012768,0.00012569,2]
[419311786,1775147438791,-2973.36857482,0.00012569,2]
[419311787,1775147438801,-200.0,0.00012572,2]
[419311788,1775147438810,-500.0,0.00012572,2]
[419311790,1775147438820,-500.0,0.00012572,2]
[419311792,1775147438829,-500.0,0.00012572,2]
[419311794,1775147438838,-500.0,0.00012572,2]
[419311796,1775147438848,-500.0,0.00012572,2]
[419311798,1775147438857,-500.0,0.00012572,2]
[419311800,1775147438867,-500.0,0.00012572,2]
[419311801,1775147438875,-500.0,0.00012572,2]
[419311803,1775147438885,-500.0,0.00012572,2]
[419311805,1775147438894,-500.0,0.00012572,2]
[419311807,1775147438903,-500.0,0.00012572,2]
[419311808,1775147438913,-500.0,0.00012572,2]
[419311809,1775147438923,-500.0,0.00012572,2]
[419311810,1775147438932,-500.0,0.00012572,2]
[419311812,1775147438943,-437.41110971,0.00012572,2]
[419311815,1775147438952,-500.0,0.00012572,2]
[419311816,1775147438961,-500.0,0.00012572,2]
[419311817,1775147438971,-500.0,0.00012572,2]
[419311818,1775147438981,-959.83,0.00012572,2]
[419311819,1775147438990,-500.0,0.00012573,2]
[419311820,1775147439000,-168285.3101,0.00012573,2]
[419311821,1775147439009,-487.83801797,0.00012668,2]
[419311823,1775147439019,-500.0,0.00012668,2]
[419311824,1775147439028,-450.54200131,0.00012668,2]
[419311826,1775147439038,-500.0,0.00012668,2]
[419311828,1775147439048,-378.76268046,0.00012668,2]
[419311830,1775147439057,-300322.1887165,0.00012669,2]
[419311832,1775147439066,-391112.0335541,0.00012669,2]
[419311834,1775147439075,-151.0,0.00012669,2]
[419311836,1775147439084,-151.0,0.00012669,2]
[419311838,1775147439094,-151.0,0.00012669,2]
[419311840,1775147439103,-480.930567,0.00012669,2]
[419311842,1775147439112,-480.930567,0.00012669,2]
[419311844,1775147439122,-480.930567,0.00012669,2]
[419311846,1775147439131,-480.930567,0.00012669,2]
[419311848,1775147439140,-851.580396,0.00012669,2]
[419311850,1775147439150,-851.580396,0.00012669,2]
[419311852,1775147439160,-851.580396,0.00012669,2]
[419311854,1775147439169,-851.580396,0.00012669,2]
[419311856,1775147439178,-151.0,0.00012669,2]
[419311858,1775147439187,-151.0,0.00012669,2]
[419311860,1775147439197,-151.0,0.00012669,2]
[419311862,1775147439206,-170.2742688,0.00012669,2]
[419311864,1775147439216,-1680.0,0.00012669,2]
[419311866,1775147439225,-500.0,0.00012673,2]
[419311868,1775147439234,-576.67433813,0.00012673,2]
[419311870,1775147439245,-500.68484421,0.00012673,2]
[419311872,1775147439256,-500.0,0.00012673,2]
[419311874,1775147439265,-164.35655208,0.00012673,2]